bitfinex/quotes_ETHUSD_20260227
["timestamp","ask_amount","ask_price","bid_price","bid_amount"]
[1772192641561,2.34773894,1962.1,1961.1,0.0011]
[1772192642349,1.07257837,1962.0,1961.1,0.0011]
[1772192642964,1.463,1961.9,1961.1,0.0011]
[1772192643271,1.07257837,1961.8,1961.1,0.0011]
[1772192643976,2.34698322,1961.7,1961.1,0.0011]
[1772192644177,1.07257837,1961.6,1961.1,0.0011]
[1772192645249,1.462,1961.5,1961.1,0.0011]
[1772192645455,1.07257837,1961.4,1961.1,0.0011]
[1772192645861,2.34723567,1961.4,1961.1,0.0011]
[1772192647881,1.07257837,1961.4,1961.1,0.0011]
[1772192648086,2.73751715,1961.6,1961.1,0.0011]
[1772192648381,2.34701536,1961.7,1961.1,0.0011]
[1772192648567,3.81001536,1961.7,1961.1,0.0011]
[1772192648969,2.53557837,1961.7,1961.1,0.0011]
[1772192649165,1.07257837,1961.6,1960.8,0.0011]
[1772192649367,1.07257837,1961.6,1960.1,1.53052823]
[1772192649368,1.07257837,1960.9,1959.8,1.27561634]
[1772192649680,1.07257837,1960.7,1959.8,1.27561634]
[1772192649983,1.07257837,1960.7,1959.6,5.10307388]
[1772192649984,1.27511986,1960.6,1959.6,5.10307388]
[1772192650190,1.27511986,1960.6,1959.5,6.11905748]
[1772192650371,2.2550771,1960.6,1959.5,8.59983237]
[1772192650567,2.2550771,1960.6,1959.3,5.10360314]
[1772192650568,0.97995724,1960.5,1959.3,5.10360314]
[1772192650777,0.97995724,1960.5,1959.4,1.016496]
[1772192652094,1.27524994,1960.4,1959.5,2.56283567]
[1772192652788,2.25519505,1960.5,1959.5,2.56283567]
[1772192652988,0.97995724,1960.4,1959.5,2.56283567]
[1772192653365,1.27516006,1960.6,1959.5,3.57933167]
[1772192653585,0.97995724,1960.5,1959.6,1.287]
[1772192654180,0.97995724,1960.3,1959.6,2.5627569]
[1772192654580,0.97995724,1960.3,1959.6,2.56276921]
[1772192654970,0.97995724,1960.3,1960.1,0.003]
[1772192655284,0.97995724,1960.3,1959.6,2.56276949]
[1772192655486,0.97995724,1960.3,1959.5,0.0011]
[1772192655487,0.97995724,1960.1,1959.5,0.0011]
[1772192655866,0.97995724,1960.1,1958.9,5.1047827]
[1772192655867,0.97995724,1959.7,1958.6,1.27635676]
[1772192656196,0.97995724,1959.5,1958.4,8.60549855]
[1772192656491,0.97995724,1959.5,1958.4,4.77627429]
[1772192656696,0.97995724,1959.5,1958.0,2.50985829]
[1772192656892,1.27581128,1959.6,1958.1,1.27674786]
[1772192656893,0.97995724,1959.1,1958.1,1.27674786]
[1772192657071,2.44495724,1959.0,1958.1,1.27674786]
[1772192657389,0.97995724,1958.9,1958.1,1.27674786]
[1772192657601,0.97995724,1959.3,1958.1,2.56274786]
[1772192657787,0.97995724,1959.2,1958.2,3.49727089]
[1772192658179,0.97995724,1959.2,1958.3,1.27661747]
[1772192659685,2.2559995,1959.2,1958.3,1.27661747]
[1772192659994,0.97995724,1959.1,1958.3,1.27661747]
[1772192660194,0.97995724,1959.1,1958.2,5.10646989]
[1772192660195,0.97995724,1959.0,1958.2,5.10646989]
[1772192660805,0.97995724,1959.0,1958.0,5.10723902]
[1772192660806,0.97995724,1958.9,1957.8,1.2769435]
[1772192661106,1.7758237,1959.0,1957.8,1.2769435]
[1772192661107,0.97995724,1958.7,1957.8,1.2769435]
[1772192661803,0.97995724,1958.7,1957.7,1.27697427]
[1772192661804,0.97995724,1958.6,1957.7,1.27697427]
[1772192662003,1.462,1958.5,1957.3,5.10859453]
[1772192662210,1.27661747,1958.3,1957.3,5.10859453]
[1772192662406,0.97995724,1958.3,1957.3,5.10859453]
[1772192662694,0.97995724,1958.3,1957.3,6.12509053]
[1772192663608,0.97995724,1958.3,1957.3,5.10859453]
[1772192664582,2.44195724,1958.3,1957.3,5.10859453]
[1772192664783,0.97995724,1958.2,1957.3,5.10859453]
[1772192665477,0.97995724,1958.2,1957.3,6.88441823]
[1772192665708,0.97995724,1958.7,1957.9,1.7758237]
[1772192666007,0.97995724,1958.7,1957.8,1.289]
[1772192666710,0.97995724,1958.7,1957.9,1.27687828]
[1772192667810,0.001,1959.1,1958.0,1.016496]
[1772192667811,0.98095724,1959.1,1958.0,1.016496]
[1772192668109,0.98095724,1959.1,1958.2,1.7758237]
[1772192668410,0.001,1959.1,1958.2,1.7758237]
[1772192668612,0.001,1959.1,1958.4,1.016496]
[1772192668909,5.10111043,1960.4,1958.3,1.27661747]
[1772192668910,0.97995724,1960.2,1958.9,1.016496]
[1772192669093,0.97995724,1960.2,1959.2,1.7758237]
[1772192669713,0.97995724,1960.6,1959.5,1.7758237]
[1772192669879,0.97995724,1960.6,1959.8,1.7758237]
[1772192670306,1.459,1961.0,1959.8,1.7758237]
[1772192670307,0.97995724,1961.0,1959.8,1.7758237]
[1772192670508,0.97995724,1961.0,1959.9,1.27557528]
[1772192670509,1.96395724,1961.0,1959.9,1.27557528]
[1772192670699,0.97995724,1961.0,1960.0,2.6008237]
[1772192671380,0.97995724,1961.0,1960.0,0.825]
[1772192672209,0.97995724,1960.9,1960.0,0.825]
[1772192672598,0.97995724,1960.9,1960.1,1.27544513]
[1772192672599,0.97995724,1960.8,1960.1,1.27544513]
[1772192674587,0.97995724,1961.2,1959.9,5.10228446]
[1772192674923,0.97995724,1961.0,1959.7,5.10178052]
[1772192675125,0.97995724,1960.8,1959.7,5.10178052]
[1772192675424,0.97995724,1960.6,1959.7,5.10178052]
[1772192676088,0.97995724,1960.6,1959.4,1.27590078]
[1772192676089,1.16681348,1960.6,1959.4,1.27590078]
[1772192676287,3.70788324,1960.5,1959.4,1.27590078]
[1772192676483,0.97995724,1960.4,1959.4,1.27590078]
[1772192676689,0.97995724,1960.2,1959.1,1.27609616]
[1772192677514,0.97995724,1960.0,1959.1,1.27609616]
[1772192677720,0.97995724,1959.8,1959.1,1.27609616]
[1772192678238,0.97995724,1959.8,1958.5,5.10592265]
[1772192678456,0.97995724,1959.8,1958.6,1.27642193]
[1772192678612,1.03845688,1959.1,1957.7,2.29861837]
[1772192678810,1.03845688,1959.1,1957.7,7.40649334]
[1772192679247,1.03845688,1959.1,1957.7,6.11749334]
[1772192679546,1.03845688,1959.1,1957.7,5.10787497]
[1772192679547,1.03845688,1958.9,1957.7,5.10787497]
[1772192680939,1.0421133,1959.3,1957.9,2.7971762]
[1772192681147,1.0421133,1959.3,1958.1,2.29363811]
[1772192681308,1.0421133,1959.3,1958.1,3.2674312]
[1772192681513,1.0421133,1959.7,1958.2,0.97379309]
[1772192681707,1.0421133,1959.7,1958.3,1.82338311]
[1772192681925,1.0421133,1959.7,1958.3,2.7971762]
[1772192682326,1.0421133,1959.7,1958.4,0.97379309]
[1772192682533,1.0421133,1959.7,1958.5,1.288]
[1772192682725,1.0421133,1959.7,1958.3,5.10568773]
[1772192682928,1.0421133,1959.7,1958.4,0.97379309]
[1772192683127,1.0421133,1959.7,1958.5,1.82338311]
[1772192683709,1.0421133,1959.7,1958.5,2.7971762]
[1772192685036,1.0421133,1959.7,1958.6,1.27642193]
[1772192685230,1.0421133,1960.2,1958.7,1.287]
[1772192685671,1.0421133,1960.0,1958.7,1.287]
[1772192686544,1.0421133,1959.8,1958.7,1.287]
[1772192686861,1.0421133,1959.6,1958.5,5.10568773]
[1772192687458,1.0421133,1959.6,1958.4,5.10568773]
[1772192688942,1.0421133,1959.4,1958.4,5.10568773]
[1772192689948,1.0421133,1959.7,1958.5,2.7971762]
[1772192690146,1.0421133,1960.1,1958.9,2.7971762]
[1772192690453,1.0421133,1960.1,1959.0,1.288]
[1772192690846,1.0421133,1960.1,1959.1,1.27609616]
[1772192691053,1.0421133,1960.5,1959.3,1.82338311]
[1772192691285,1.0421133,1960.5,1959.6,1.77315452]
[1772192691573,0.001,1960.7,1959.9,1.77315452]
[1772192693013,0.001,1960.7,1960.0,1.2755102]
[1772192693191,1.0431133,1960.7,1960.0,1.2755102]
[1772192695108,1.0421133,1960.6,1959.6,1.27577056]
[1772192695629,0.001,1960.7,1960.0,2.74694761]
[1772192695888,1.0421133,1960.6,1959.7,1.289]
[1772192697012,1.0421133,1960.6,1959.6,1.27577056]
[1772192697225,1.0421133,1960.4,1959.5,5.10330438]
[1772192697783,1.0421133,1960.3,1959.5,5.10330438]
[1772192698612,1.0421133,1960.3,1959.4,5.10346695]
[1772192698888,1.0421133,1960.1,1959.0,5.10447497]
[1772192699085,1.0421133,1959.9,1959.0,1.2761613]
[1772192701034,1.0421133,1959.7,1958.6,1.27642193]
[1772192701314,6.92662316,1960.1,1958.6,1.27642193]
[1772192701315,1.0421133,1960.1,1958.9,1.82458235]
[1772192701490,1.0421133,1960.1,1959.0,1.289]
[1772192702814,1.0421133,1960.5,1959.1,0.97379309]
[1772192703017,1.0421133,1960.8,1959.4,0.97379309]
[1772192703313,2.4851133,1961.2,1959.6,0.97379309]
[1772192703519,1.0421133,1961.1,1959.6,0.97379309]
[1772192703997,1.0421133,1960.9,1959.6,0.97379309]
[1772192704910,0.001,1959.8,1959.6,0.97379309]
[1772192705232,1.0421133,1960.9,1959.7,2.24949855]
[1772192705925,1.0421133,1960.9,1959.8,0.97379309]
[1772192706133,3.75680658,1961.3,1959.8,0.97379309]
[1772192706300,2.3167824,1961.3,1959.8,0.97379309]
[1772192706502,1.0421133,1961.2,1959.8,0.97379309]
[1772192707116,1.0421133,1961.2,1959.9,0.97379309]
[1772192707317,1.0421133,1961.2,1960.0,2.24930329]
[1772192707505,0.001,1961.5,1960.2,0.97379309]
[1772192707705,0.001,1961.5,1960.3,0.97379309]
[1772192707907,1.0421133,1961.4,1960.3,0.97379309]
[1772192708122,1.0421133,1961.4,1960.1,1.286]
[1772192708500,1.0421133,1961.4,1960.1,2.25979309]
[1772192708831,1.0421133,1961.2,1960.1,1.286]
[1772192709325,2.31690805,1961.1,1960.2,1.27538006]
[1772192709700,1.0421133,1961.1,1960.2,1.27538006]
[1772192711603,2.28391815,1961.0,1960.2,1.27538006]
[1772192711829,1.00905839,1960.9,1960.2,1.27538006]
[1772192712218,1.00905839,1960.9,1960.1,1.27544513]
[1772192712731,1.437,1961.1,1960.1,1.27544513]
[1772192713031,2.44605839,1961.1,1960.1,1.27544513]
[1772192713335,1.00905839,1960.7,1959.7,1.27570546]
[1772192713630,1.27511986,1960.6,1959.6,5.10306659]
[1772192713822,1.00905839,1960.7,1959.6,5.10306659]
[1772192714023,1.436,1960.9,1959.7,1.00833879]
[1772192714226,0.841,1960.9,1959.7,1.00833879]
[1772192714620,0.841,1960.9,1959.8,1.00833879]
[1772192714819,1.00905839,1961.1,1959.8,1.00833879]
[1772192715022,2.44505839,1961.1,1959.8,1.00833879]
[1772192715344,1.19591463,1960.7,1959.5,5.10308226]
[1772192715512,2.28416347,1960.7,1959.5,5.10308226]
[1772192715834,0.18685624,1960.6,1959.5,5.10308226]
[1772192716038,2.28416347,1960.7,1959.5,5.10308226]
[1772192716407,2.28416347,1960.7,1959.6,0.0011]
[1772192717116,1.27601651,1960.8,1959.6,1.00943879]
[1772192717441,1.436,1960.7,1959.6,1.00943879]
[1772192717738,0.001,1960.8,1959.9,1.00833879]
[1772192718032,0.001,1960.8,1959.9,2.29333879]
[1772192719519,0.001,1960.8,1959.9,1.00833879]
[1772192720224,0.001,1960.8,1959.7,1.27570546]
[1772192720225,1.19591463,1960.7,1959.7,1.27567572]
[1772192720423,1.19591463,1960.7,1959.6,1.27682346]
[1772192721125,1.19591463,1960.5,1959.6,0.0011]
[1772192721307,0.18685624,1960.2,1959.6,0.0011]
[1772192721507,1.00905839,1960.0,1958.7,1.00833879]
[1772192721709,1.19591463,1959.9,1958.7,2.28465132]
[1772192721936,1.436,1959.8,1958.7,1.27631253]
[1772192722133,1.436,1959.8,1958.8,1.00833879]
[1772192722317,1.074,1959.7,1958.9,1.27622645]
[1772192723025,1.074,1959.7,1958.8,2.28458769]
[1772192723627,1.27564037,1959.8,1958.8,2.28458769]
[1772192723936,1.437,1959.7,1958.8,2.28458769]
[1772192724439,1.27564037,1959.8,1958.8,2.28458769]
[1772192724744,6.49559763,1960.7,1958.8,2.28458769]
[1772192724745,1.437,1960.2,1959.3,1.00833879]
[1772192724911,0.978,1960.3,1959.3,1.00833879]
[1772192725416,1.437,1960.3,1959.3,1.00833879]
[1772192726210,2.71118729,1960.5,1959.3,1.00833879]
[1772192726840,2.71118729,1960.5,1959.5,1.00833879]
[1772192727050,0.001,1960.8,1959.5,1.00833879]
[1772192727208,1.27600641,1960.8,1959.8,1.00833879]
[1772192727941,0.001,1960.8,1959.8,1.00833879]
[1772192728107,1.436,1960.7,1959.8,1.00833879]
[1772192728311,2.44505839,1960.7,1959.5,1.285]
[1772192728506,0.18685624,1960.6,1959.4,2.28423957]
[1772192728729,1.00905839,1960.7,1959.5,1.00833879]
[1772192728912,1.2751849,1960.5,1959.6,1.27577056]
[1772192730241,1.2751541,1960.6,1959.6,1.27577056]
[1772192730414,1.435,1960.4,1959.6,2.28410935]
[1772192730923,1.435,1960.5,1959.8,1.27564037]
[1772192731333,2.7101876,1960.5,1959.8,1.27564037]
[1772192731837,1.435,1960.5,1959.8,1.27564037]
[1772192732017,2.709167,1960.6,1959.8,1.27564037]
[1772192732745,12.267425,1960.5,1959.5,1.27583567]
[1772192732913,1.27524994,1960.4,1959.5,1.27583567]
[1772192733448,1.2752378,1960.5,1959.5,1.27583567]
[1772192733625,1.2752378,1960.5,1959.6,1.00833879]
[1772192733825,1.434,1960.4,1959.6,1.00833879]
[1772192734730,0.001,1960.7,1959.6,1.00833879]
[1772192735118,0.001,1960.7,1959.8,1.00833879]
[1772192736346,0.001,1960.7,1959.7,1.27570546]
[1772192737346,0.001,1960.7,1959.6,5.10282186]
[1772192737347,2.28511321,1960.7,1959.6,5.10282186]
[1772192737532,9.003965,1960.6,1959.6,5.10282186]
[1772192737719,2.28511321,1960.7,1959.6,5.10282186]
[1772192739119,1.434,1960.6,1959.6,5.10282186]
[1772192739318,2.7082236,1960.5,1959.6,6.15124465]
[1772192739518,1.27610839,1960.7,1959.7,1.04842279]
[1772192739815,1.433,1960.6,1959.7,1.04842279]
[1772192740217,1.27605712,1960.7,1959.7,1.04842279]
[1772192740417,0.001,1960.7,1959.7,1.04842279]
[1772192741422,0.001,1960.7,1959.9,1.0445946]
[1772192741829,0.001,1960.7,1960.0,1.0445946]
[1772192742023,0.001,1960.8,1959.9,3.76672794]
[1772192742230,0.001,1961.5,1960.4,1.0445946]
[1772192742444,0.001,1961.5,1960.6,1.0445946]
[1772192743223,1.27553903,1961.5,1960.6,1.0445946]
[1772192743442,0.98602153,1961.5,1960.6,1.27511018]
[1772192743926,0.001,1961.5,1960.6,1.27511018]
[1772192744148,1.43,1961.4,1960.6,1.27511018]
[1772192744546,2.41502153,1961.4,1960.2,1.27538006]
[1772192744748,12.465644,1961.3,1960.2,1.27538006]
[1772192744949,1.43,1961.2,1960.2,1.27538006]
[1772192745149,1.43,1961.1,1960.2,1.27538006]
[1772192745481,2.70481686,1961.1,1960.2,1.27538006]
[1772192745634,1.27481686,1961.1,1960.2,1.27538006]
[1772192745836,1.27481686,1961.1,1960.1,3.60298864]
[1772192746742,1.27481686,1961.1,1960.1,2.31998864]
[1772192746939,4.21891,1961.0,1960.1,2.31998864]
[1772192747139,1.27481686,1961.1,1960.1,2.31998864]
[1772192747334,1.27492477,1960.9,1960.1,2.31998864]
[1772192747859,1.27472975,1961.2,1960.2,1.0445946]
[1772192748040,1.43,1961.1,1960.2,1.0445946]
[1772192748359,2.297642,1961.0,1960.1,1.27539404]
[1772192748659,0.98502153,1961.1,1960.1,1.27539404]
[1772192748844,1.43,1961.0,1960.1,1.27539404]
[1772192749049,1.43,1961.0,1960.1,2.31998864]
[1772192749454,2.70486393,1961.0,1960.1,2.31998864]
[1772192749649,2.70466476,1961.3,1960.2,1.0445946]
[1772192749849,7.59661353,1961.2,1960.2,1.0445946]
[1772192750043,0.98502153,1961.2,1960.2,1.0445946]
[1772192750874,0.98502153,1961.2,1959.9,1.0445946]
[1772192751033,1.17187777,1960.9,1959.8,5.10233063]
[1772192751234,1.432,1960.8,1959.8,5.10233063]
[1772192751463,1.432,1960.8,1959.8,6.14692523]
[1772192751659,1.27505482,1960.7,1959.8,6.14692523]
[1772192753339,2.26007635,1960.7,1959.7,1.27565883]
[1772192753546,0.98502153,1960.6,1959.5,5.10317095]
[1772192753742,0.98502153,1960.6,1959.5,1.27583567]
[1772192754760,1.43,1960.5,1959.9,0.0011]
[1772192755866,0.98602153,1960.9,1959.9,1.0456946]
[1772192756072,0.98602153,1960.9,1959.8,0.0011]
[1772192756073,0.98502153,1960.7,1959.8,0.0011]
[1772192756365,0.98502153,1960.6,1959.8,0.0011]
[1772192756570,0.18685624,1960.5,1959.8,0.0011]
[1772192756774,0.18685624,1960.4,1959.8,0.0011]
[1772192756946,1.429,1960.3,1959.6,0.0011]
[1772192757579,1.27538006,1960.2,1959.6,0.0011]
[1772192757739,1.27538006,1960.2,1959.3,6.14929774]
[1772192757740,1.27538006,1960.2,1959.3,1.0456946]
[1772192757943,1.429,1960.1,1959.3,0.0011]
[1772192758241,2.41402153,1960.1,1959.3,0.0011]
[1772192758441,2.41402153,1960.1,1958.9,2.32079428]
[1772192758442,1.17187777,1959.9,1958.9,2.32079428]
[1772192758749,3.936759,1959.8,1958.9,2.32079428]
[1772192759137,1.17187777,1959.9,1958.9,2.32079428]
[1772192759338,2.820036,1959.8,1958.9,2.32079428]
[1772192760276,1.27570546,1959.7,1958.9,2.32079428]
[1772192760519,0.98502153,1959.5,1958.4,0.0011]
[1772192760644,1.17187777,1959.3,1958.4,0.0011]
[1772192760846,1.17187777,1959.3,1957.8,1.282]
[1772192760847,15.05270653,1958.9,1957.8,1.27687828]
[1772192761074,1.428,1958.8,1957.8,1.27687828]
[1772192761376,2.41302153,1958.8,1957.8,1.27687828]
[1772192762143,0.18685624,1959.0,1957.9,1.0445946]
[1772192762343,0.18685624,1959.0,1957.9,1.2768443]
[1772192762344,0.98502153,1958.8,1957.9,1.2768443]
[1772192762662,0.98502153,1958.8,1957.7,5.10791776]
[1772192763168,8.720613,1958.6,1957.7,5.10791776]
[1772192763365,5.277613,1958.6,1957.7,5.10791776]
[1772192763680,5.277613,1958.6,1957.6,1.0445946]
[1772192763842,3.46774947,1958.6,1957.6,2.32162504]
[1772192764044,1.17187777,1958.5,1957.6,1.27703044]
[1772192764251,1.27661747,1958.3,1957.3,5.10895678]
[1772192764963,1.17187777,1958.2,1956.4,6.15539027]
[1772192765165,1.17187777,1958.2,1956.6,1.0445946]
[1772192765166,18.264103,1957.8,1956.6,1.0445946]
[1772192765493,18.264103,1957.8,1956.0,2.53272794]
[1772192765494,0.98502153,1956.7,1955.4,1.27851079]
[1772192765663,1.139,1957.1,1955.7,1.0445946]
[1772192765989,1.139,1957.1,1955.8,1.0445946]
[1772192765990,1.089,1957.1,1955.8,1.0445946]
[1772192766194,4.844124,1956.9,1955.8,1.0445946]
[1772192766377,0.98502153,1957.4,1956.0,1.0445946]
[1772192766690,2.46420291,1958.0,1956.6,1.0445946]
[1772192766899,2.72350747,1958.7,1956.9,1.0445946]
[1772192767103,14.220528,1958.6,1957.2,1.0445946]
[1772192767397,14.55152953,1958.1,1956.9,1.0445946]
[1772192767562,0.98502153,1957.7,1956.5,1.0445946]
[1772192768025,0.825,1957.6,1956.5,1.0445946]
[1772192768197,0.825,1957.6,1957.4,0.0011]
[1772192768417,2.48272794,1958.0,1956.7,1.0445946]
[1772192768418,1.432,1958.0,1956.7,1.0445946]
[1772192768705,1.432,1957.9,1957.3,0.0011]
[1772192768870,1.432,1958.0,1957.3,0.0011]
[1772192769193,0.98502153,1958.1,1957.3,0.0011]
[1772192769571,0.001,1958.3,1957.3,3.52842254]
[1772192770099,1.05715068,1958.3,1957.3,0.0011]
[1772192770397,1.431,1958.2,1957.3,0.0011]
[1772192770901,1.431,1958.2,1957.1,0.0011]
[1772192770902,6.00437268,1957.8,1957.1,0.0011]
[1772192771192,1.431,1957.9,1957.1,0.0011]
[1772192771396,1.05615068,1958.1,1957.1,0.0011]
[1772192771696,1.05615068,1958.0,1957.1,0.0011]
[1772192771903,1.432,1957.9,1957.1,0.0011]
[1772192772699,2.48372794,1958.3,1957.1,0.0011]
[1772192772700,0.001,1958.3,1957.1,0.0011]
[1772192772899,1.2776286,1958.3,1957.1,0.0011]
[1772192773101,1.05615068,1958.1,1957.1,0.0011]
[1772192773401,1.431,1958.1,1957.1,0.0011]
[1772192773610,0.001,1958.3,1957.1,0.97950979]
[1772192773611,1.432,1958.3,1957.1,0.97950979]
[1772192774182,1.05615068,1958.5,1957.2,2.48272794]
[1772192774495,2.48615068,1958.5,1957.4,1.27720445]
[1772192774690,1.05615068,1958.5,1957.4,1.27720445]
[1772192774892,2.48615068,1958.5,1957.4,1.27720445]
[1772192775489,1.05615068,1958.5,1957.4,1.27720445]
[1772192775781,1.43,1958.6,1957.5,0.97840979]
[1772192776488,1.43,1958.6,1957.6,1.27707396]
[1772192776687,1.05615068,1958.5,1957.6,1.27707396]
[1772192777192,1.27627403,1958.9,1957.7,0.97840979]
[1772192777389,10.763622,1958.7,1957.7,0.97840979]
[1772192777580,1.46313027,1958.9,1957.6,2.25548375]
[1772192777782,1.429,1958.8,1957.7,0.97840979]
[1772192777986,1.429,1959.0,1957.7,0.97840979]
[1772192778296,1.05615068,1958.8,1957.7,0.97840979]
[1772192778605,1.27635676,1958.7,1957.8,1.2769435]
[1772192778795,3.4428,1958.6,1957.8,1.2769435]
[1772192779189,3.4428,1958.6,1957.7,1.27696706]
[1772192779190,1.05615068,1958.6,1957.7,1.27696706]
[1772192779593,1.27635676,1958.7,1957.7,1.27696706]
[1772192780409,13.072936,1958.6,1957.7,1.27696706]
[1772192780707,0.001,1958.5,1957.7,1.27696706]
[1772192781785,1.43,1958.5,1957.7,1.27696706]
[1772192782019,0.001,1958.5,1957.7,1.27696706]
[1772192782202,0.001,1958.5,1957.8,0.97840979]
[1772192782710,0.001,1958.5,1957.9,1.27687828]
[1772192783207,0.001,1958.5,1957.6,1.27700873]
[1772192783380,0.001,1958.5,1957.6,2.25541852]
[1772192783786,0.001,1958.5,1957.7,0.97840979]
[1772192784582,0.001,1958.5,1957.9,0.97840979]
[1772192785408,0.001,1958.5,1957.8,1.2769435]
[1772192787323,0.001,1958.5,1957.7,5.10777403]
[1772192790798,0.001,1958.5,1957.7,6.08618382]
[1772192791188,0.001,1958.5,1957.8,0.97840979]
[1772192791391,1.05615068,1959.2,1958.2,0.97840979]
[1772192791392,1.422,1959.2,1958.2,0.97840979]
[1772192792623,1.27594804,1959.4,1958.2,0.97840979]
[1772192792797,1.77768212,1959.1,1958.2,0.97840979]
[1772192792986,2.277731,1959.0,1958.0,0.97840979]
[1772192793187,3.839,1959.2,1958.0,0.97840979]
[1772192793417,6.869319,1959.1,1958.1,1.27674786]
[1772192793716,4.10966269,1959.6,1958.3,0.97840979]
[1772192793920,1.421,1959.4,1958.3,0.97840979]
[1772192795020,3.01303,1959.3,1958.3,0.97840979]
[1772192795194,1.77768212,1959.3,1958.3,0.97840979]
[1772192795515,2.69690657,1959.4,1958.5,0.97840979]
[1772192795901,2.69690801,1959.4,1958.5,0.97840979]
[1772192796422,1.421,1959.4,1958.5,0.97840979]
[1772192796628,0.065536,1959.9,1958.6,1.77768212]
[1772192796935,1.05615068,1959.6,1958.4,1.27655228]
[1772192797100,1.77768212,1959.7,1958.5,0.97840979]
[1772192797430,2.33198635,1959.5,1958.6,1.27642193]
[1772192797923,2.33198635,1959.5,1958.5,6.08409752]
[1772192797924,2.8338328,1959.4,1958.5,5.10568773]
[1772192798117,2.8338328,1959.4,1958.3,6.38944571]
[1772192798118,2.8338328,1959.4,1958.4,5.10607828]
[1772192798291,2.8338328,1959.4,1958.5,1.27645715]
[1772192798720,1.27580608,1959.6,1958.5,2.32757444]
[1772192798915,9.40768142,1959.7,1958.6,1.05111729]
[1772192798916,2.38283914,1959.7,1958.6,1.05111729]
[1772192799217,1.10713043,1959.4,1958.5,1.27645715]
[1772192799416,1.10713043,1959.7,1958.7,1.27635676]
[1772192799617,2.38284754,1959.7,1958.7,2.32747405]
[1772192799912,1.419,1959.8,1958.8,1.07820394]
[1772192800221,11.02092,1959.9,1958.8,1.07820394]
[1772192800410,1.067022,1960.0,1958.8,1.07820394]
[1772192800613,2.6954257,1960.2,1959.0,1.07820394]
[1772192800920,1.42,1960.2,1959.0,1.07820394]
[1772192801121,1.27535911,1960.3,1959.0,1.07820394]
[1772192801517,1.27538847,1960.2,1959.2,1.07820394]
[1772192802020,3.76131421,1960.4,1959.2,1.07820394]
[1772192802326,2.167169,1960.3,1959.3,1.07820394]
[1772192802527,2.65221583,1960.6,1959.3,1.07820394]
[1772192802729,1.77768212,1960.4,1959.3,1.07820394]
[1772192803098,1.27595025,1960.9,1959.6,1.07820394]
[1772192803416,0.001,1960.9,1959.8,1.27564037]
[1772192803726,4.662,1960.8,1959.9,1.07820394]
[1772192803913,2.84570412,1960.9,1959.9,1.07820394]
[1772192804296,7.557,1960.8,1959.9,1.07820394]
[1772192804526,3.45,1960.8,1959.9,1.07820394]
[1772192804709,1.77868212,1960.9,1959.9,1.07820394]
[1772192804908,6.722,1960.8,1959.9,1.07820394]
[1772192805407,0.001,1960.9,1959.9,1.07820394]
[1772192805601,0.001,1960.9,1960.0,1.2755102]
[1772192805827,1.27595819,1960.9,1960.0,1.2755102]
[1772192807228,1.27595819,1960.9,1959.5,1.27583567]
[1772192807229,1.067022,1960.5,1959.5,1.27583567]
[1772192807413,1.418,1960.4,1959.5,1.27583567]
[1772192807604,1.275315,1960.3,1959.3,5.10334268]
[1772192807805,2.69328335,1960.4,1959.3,6.18154662]
[1772192808019,2.69325253,1960.4,1959.3,6.18154662]
[1772192808821,3.76027453,1960.4,1959.3,2.35416984]
[1772192809005,1.067022,1960.3,1959.3,1.2759659]
[1772192809629,4.572297,1960.1,1959.2,5.10386704]
[1772192809929,1.27538006,1960.2,1959.2,5.10386704]
[1772192810431,2.34234987,1960.3,1959.3,1.07820394]
[1772192810620,1.27531409,1960.4,1959.3,1.07820394]
[1772192810821,5.10015503,1960.8,1959.6,1.07820394]
[1772192811021,1.418,1960.7,1959.7,1.07820394]
[1772192811332,2.254,1960.6,1959.7,1.07820394]
[1772192811516,1.418,1960.7,1959.7,1.07820394]
[1772192811722,1.067022,1960.5,1959.4,1.07820394]
[1772192811930,13.871215,1960.3,1959.5,1.27583567]
[1772192812507,10.615603,1960.1,1959.3,1.2759659]
[1772192812730,9.270223,1960.1,1959.3,1.2759659]
[1772192813104,1.067022,1960.1,1959.2,2.55900565]
[1772192813305,1.067022,1960.1,1959.2,1.27600565]
[1772192813504,1.067022,1960.1,1959.1,1.276044]
[1772192813708,1.067022,1960.1,1958.6,1.77768212]
[1772192813709,8.28656713,1960.1,1959.3,1.2759659]
[1772192813930,1.27544513,1960.1,1959.3,1.2759659]
[1772192814432,2.34246713,1960.1,1959.3,1.2759659]
[1772192814636,1.422,1960.0,1959.3,1.2759659]
[1772192814841,2.166,1959.9,1959.0,1.2761613]
[1772192816229,1.27564037,1959.8,1959.0,1.2761613]
[1772192817043,1.067022,1959.7,1958.7,5.10529143]
[1772192817435,1.067022,1959.7,1958.7,1.27635676]
[1772192818016,1.067022,1959.7,1959.1,0.0011]
[1772192818346,1.27577056,1959.6,1959.1,0.0011]
[1772192818647,1.421,1959.7,1959.1,0.0011]
[1772192820236,10.64708067,1959.5,1958.8,0.0011]
[1772192820447,2.34285767,1959.5,1958.6,2.55837681]
[1772192821356,1.27583567,1959.5,1958.7,1.07820394]
[1772192821760,6.52269668,1959.8,1958.7,1.07820394]
[1772192822256,1.068022,1960.2,1959.1,1.07820394]
[1772192822545,1.067022,1960.0,1958.9,2.35443039]
[1772192822749,2.69640202,1960.2,1959.0,1.07820394]
[1772192822929,1.27640202,1960.2,1959.0,1.07820394]
[1772192823131,2.69639893,1960.2,1959.0,1.07820394]
[1772192823521,1.421,1960.2,1959.3,1.07820394]
[1772192823723,0.001,1960.2,1959.6,1.07820394]
[1772192824321,0.001,1960.2,1959.8,1.07820394]
[1772192824543,0.001,1960.9,1960.0,1.07820394]
[1772192824748,1.27592882,1960.9,1960.0,1.07820394]
[1772192825254,0.001,1960.9,1960.0,1.07820394]
[1772192825857,0.001,1960.9,1960.2,1.07820394]
[1772192826355,0.001,1960.9,1960.4,1.07820394]
[1772192826653,1.27558456,1961.5,1960.4,1.07820394]
[1772192826822,0.001,1961.5,1960.6,1.07820394]
[1772192827027,0.001,1961.5,1960.9,1.07820394]
[1772192827522,1.27555099,1961.5,1960.9,1.07820394]
[1772192828165,1.27555099,1961.5,1960.6,1.07820394]
[1772192828335,2.69255099,1961.5,1960.5,1.2751849]
[1772192829154,1.067022,1961.3,1960.1,3.8901136]
[1772192829327,1.067022,1961.3,1960.2,6.17968133]
[1772192829655,2.592571,1961.4,1960.3,1.07820394]
[1772192829845,2.461737,1961.1,1960.2,1.27538006]